[Event "Titled Tuesday Blitz May 16 Early 2023"]
[White "Castillo Pena, Patricia Evarista"]
[Black "Guevara Sanchez, Erick Marvin"]
[WhiteFideId "6412106"]
[BlackFideId "6700136"]
[WhiteElo "1919"]
[BlackElo "2040"]
[Result "0-1"]
[Round "05"]
[TimeControl "180+2"]
[Date "2023.05.16"]
[WhiteClock "0:00:00"]
[BlackClock "0:00:20"]

1. d4 {[%clk 0:02:57]}  f5 {[%clk 0:02:58]} 2. Nf3 {[%clk 0:02:57]}  g6 {[%clk 0:02:58]} 3. e3 {[%clk 0:02:56]}  Bg7 {[%clk 0:02:59]} 4. Bd3 {[%clk 0:02:55]}  d6 {[%clk 0:02:58]} 5. b3 {[%clk 0:02:55]}  Nf6 {[%clk 0:02:58]} 6. Bb2 {[%clk 0:02:55]}  O-O {[%clk 0:02:59]} 7. Nbd2 {[%clk 0:02:54]}  Qe8 {[%clk 0:02:58]} 8. e4 {[%clk 0:02:47]}  fxe4 {[%clk 0:02:51]} 9. Nxe4 {[%clk 0:02:47]}  Bg4 {[%clk 0:02:37]} 10. O-O {[%clk 0:02:43]}  Nd5 {[%clk 0:02:31]} 11. c4 {[%clk 0:02:22]}  Bxf3 {[%clk 0:02:25]} 12. gxf3 {[%clk 0:02:19]}  Nf4 {[%clk 0:02:25]} 13. Re1 {[%clk 0:02:12]}  g5 {[%clk 0:01:58]} 14. Bf1 {[%clk 0:01:40]}  Qh5 {[%clk 0:01:55]} 15. Ng3 {[%clk 0:01:33]}  Qh4 {[%clk 0:01:50]} 16. Rxe7 {[%clk 0:01:23]}  g4 {[%clk 0:01:46]} 17. Rxg7+ {[%clk 0:01:22]}  Kxg7 {[%clk 0:01:45]} 18. d5+ {[%clk 0:01:21]}  Kg8 {[%clk 0:01:41]} 19. Qd4 {[%clk 0:01:17]}  Qh6 {[%clk 0:01:08]} 20. fxg4 {[%clk 0:01:11]}  Nd7 {[%clk 0:01:00]} 21. Nf5 {[%clk 0:01:09]}  Rxf5 {[%clk 0:00:57]} 22. gxf5 {[%clk 0:01:08]}  Ne5 {[%clk 0:00:57]} 23. Kh1 {[%clk 0:01:01]}  Nf3 {[%clk 0:00:37]} 24. Qh8+ {[%clk 0:00:55]}  Kf7 {[%clk 0:00:37]} 25. Qf6+ {[%clk 0:00:33]}  Qxf6 {[%clk 0:00:37]} 26. Bxf6 {[%clk 0:00:33]}  Kxf6 {[%clk 0:00:38]} 27. Bg2 {[%clk 0:00:27]}  Nxg2 {[%clk 0:00:37]} 28. Kxg2 {[%clk 0:00:27]}  Nd4 {[%clk 0:00:36]} 29. Rd1 {[%clk 0:00:14]}  Nxf5 {[%clk 0:00:33]} 30. Re1 {[%clk 0:00:14]}  Rg8+ {[%clk 0:00:31]} 31. Kf1 {[%clk 0:00:13]}  Nd4 {[%clk 0:00:28]} 32. Re4 {[%clk 0:00:09]}  Nf5 {[%clk 0:00:25]} 33. Re6+ {[%clk 0:00:09]}  Kf7 {[%clk 0:00:25]} 34. Ke2 {[%clk 0:00:06]}  Ne7 {[%clk 0:00:23]} 35. Rh6 {[%clk 0:00:00]}  Rg7 {[%clk 0:00:20]} 0-1


[Site "https://www.chess.com"]

[Event "Titled Tuesday Blitz May 16 Early 2023"]
[White "Zhigalko, Sergei"]
[Black "Dubov, Daniil"]
[WhiteFideId "13502956"]
[BlackFideId "24126055"]
[WhiteElo "2626"]
[BlackElo "2793"]
[Result "0-1"]
[Round "06"]
[TimeControl "180+2"]
[Date "2023.05.16"]
[WhiteClock "0:00:00"]
[BlackClock "0:00:18"]

1. e4 {[%clk 0:03:00]}  e5 {[%clk 0:03:00]} 2. Nf3 {[%clk 0:03:01]}  Nc6 {[%clk 0:03:00]} 3. Bb5 {[%clk 0:03:00]}  a6 {[%clk 0:03:01]} 4. Ba4 {[%clk 0:03:01]}  Nf6 {[%clk 0:03:01]} 5. O-O {[%clk 0:03:01]}  b5 {[%clk 0:03:02]} 6. Bb3 {[%clk 0:03:01]}  Bc5 {[%clk 0:03:02]} 7. Nc3 {[%clk 0:02:58]}  d6 {[%clk 0:03:00]} 8. a4 {[%clk 0:02:55]}  Rb8 {[%clk 0:02:58]} 9. axb5 {[%clk 0:02:55]}  axb5 {[%clk 0:02:59]} 10. h3 {[%clk 0:02:39]}  O-O {[%clk 0:02:52]} 11. d3 {[%clk 0:02:38]}  h6 {[%clk 0:02:52]} 12. Be3 {[%clk 0:02:36]}  Bxe3 {[%clk 0:02:26]} 13. fxe3 {[%clk 0:02:35]}  Ne7 {[%clk 0:02:25]} 14. Nh4 {[%clk 0:02:33]}  c5 {[%clk 0:02:09]} 15. Rxf6 {[%clk 0:01:47]}  gxf6 {[%clk 0:02:10]} 16. Qh5 {[%clk 0:01:47]}  Kg7 {[%clk 0:02:02]} 17. Rf1 {[%clk 0:01:35]}  Be6 {[%clk 0:01:49]} 18. Nd5 {[%clk 0:00:40]}  c4 {[%clk 0:01:48]} 19. dxc4 {[%clk 0:00:39]}  Bxd5 {[%clk 0:01:44]} 20. cxd5 {[%clk 0:00:23]}  Rg8 {[%clk 0:01:20]} 21. Rf3 {[%clk 0:00:16]}  Qf8 {[%clk 0:01:18]} 22. c3 {[%clk 0:00:13]}  Ra8 {[%clk 0:01:15]} 23. Kh2 {[%clk 0:00:10]}  Ra1 {[%clk 0:01:14]} 24. Bd1 {[%clk 0:00:09]}  Rb1 {[%clk 0:00:37]} 25. Rf2 {[%clk 0:00:09]}  Qb8 {[%clk 0:00:20]} 26. Bg4 {[%clk 0:00:08]}  Qa7 {[%clk 0:00:18]} 27. Rf3 {[%clk 0:00:00]}  Qa1 {[%clk 0:00:18]} 0-1


[Site "https://www.chess.com"]

[Event "Titled Tuesday Blitz May 16 Early 2023"]
[White "Tabatabaei, M. Amin"]
[Black "Mamedyarov, Shakhriyar"]
[WhiteFideId "12521213"]
[BlackFideId "13401319"]
[WhiteElo "2575"]
[BlackElo "2704"]
[Result "1/2-1/2"]
[Round "06"]
[TimeControl "180+2"]
[Date "2023.05.16"]
[WhiteClock "0:00:05"]
[BlackClock "0:00:14"]

1. c4 {[%clk 0:03:00]}  Nf6 {[%clk 0:02:58]} 2. Nc3 {[%clk 0:02:58]}  e5 {[%clk 0:02:59]} 3. Nf3 {[%clk 0:02:58]}  Nc6 {[%clk 0:02:59]} 4. e3 {[%clk 0:02:53]}  Bb4 {[%clk 0:02:59]} 5. Qc2 {[%clk 0:02:54]}  d6 {[%clk 0:02:57]} 6. Ne2 {[%clk 0:02:53]}  O-O {[%clk 0:02:56]} 7. Ng3 {[%clk 0:02:53]}  a5 {[%clk 0:02:54]} 8. a3 {[%clk 0:02:43]}  Bc5 {[%clk 0:02:53]} 9. b3 {[%clk 0:02:43]}  h6 {[%clk 0:02:50]} 10. Bb2 {[%clk 0:02:43]}  Re8 {[%clk 0:02:50]} 11. Bd3 {[%clk 0:02:39]}  Be6 {[%clk 0:02:45]} 12. O-O {[%clk 0:02:37]}  Bg4 {[%clk 0:02:42]} 13. h3 {[%clk 0:02:29]}  Bxf3 {[%clk 0:02:27]} 14. gxf3 {[%clk 0:02:30]}  d5 {[%clk 0:02:24]} 15. cxd5 {[%clk 0:02:30]}  Qxd5 {[%clk 0:02:24]} 16. Bc4 {[%clk 0:02:25]}  Qxf3 {[%clk 0:02:11]} 17. Bxf7+ {[%clk 0:02:06]}  Kxf7 {[%clk 0:02:10]} 18. Qxc5 {[%clk 0:02:07]}  Rad8 {[%clk 0:02:06]} 19. Bc3 {[%clk 0:01:55]}  h5 {[%clk 0:01:59]} 20. b4 {[%clk 0:01:51]}  h4 {[%clk 0:01:50]} 21. Qc4+ {[%clk 0:01:51]}  Kg6 {[%clk 0:01:50]} 22. Qe2 {[%clk 0:01:45]}  e4 {[%clk 0:01:46]} 23. Qxf3 {[%clk 0:01:33]}  exf3 {[%clk 0:01:47]} 24. Nh1 {[%clk 0:01:34]}  Ne4 {[%clk 0:01:46]} 25. b5 {[%clk 0:01:27]}  Nxc3 {[%clk 0:01:31]} 26. bxc6 {[%clk 0:01:27]}  Ne2+ {[%clk 0:01:29]} 27. Kh2 {[%clk 0:01:27]}  b6 {[%clk 0:01:25]} 28. d4 {[%clk 0:01:21]}  Rd5 {[%clk 0:01:25]} 29. Ra2 {[%clk 0:01:13]}  Re6 {[%clk 0:01:13]} 30. Rxe2 {[%clk 0:01:07]}  fxe2 {[%clk 0:01:14]} 31. Re1 {[%clk 0:01:07]}  Kf5 {[%clk 0:01:07]} 32. Rxe2 {[%clk 0:01:00]}  Rxd4 {[%clk 0:01:03]} 33. Rc2 {[%clk 0:00:48]}  Rdd6 {[%clk 0:01:03]} 34. Rc4 {[%clk 0:00:48]}  g5 {[%clk 0:01:03]} 35. Kg2 {[%clk 0:00:39]}  Rxc6 {[%clk 0:01:03]} 36. Rd4 {[%clk 0:00:38]}  Red6 {[%clk 0:01:03]} 37. Rg4 {[%clk 0:00:38]}  b5 {[%clk 0:00:54]} 38. f4 {[%clk 0:00:38]}  gxf4 {[%clk 0:00:44]} 39. Rxf4+ {[%clk 0:00:39]}  Ke6 {[%clk 0:00:41]} 40. Rxh4 {[%clk 0:00:37]}  Rc2+ {[%clk 0:00:39]} 41. Kf3 {[%clk 0:00:37]}  c5 {[%clk 0:00:40]} 42. Ng3 {[%clk 0:00:36]}  b4 {[%clk 0:00:38]} 43. Ne4 {[%clk 0:00:31]}  Rd1 {[%clk 0:00:29]} 44. Rh6+ {[%clk 0:00:30]}  Kd7 {[%clk 0:00:26]} 45. axb4 {[%clk 0:00:24]}  axb4 {[%clk 0:00:27]} 46. Rb6 {[%clk 0:00:11]}  Kc7 {[%clk 0:00:26]} 47. Rb5 {[%clk 0:00:12]}  Kc6 {[%clk 0:00:24]} 48. Rb8 {[%clk 0:00:12]}  Rf1+ {[%clk 0:00:23]} 49. Kg3 {[%clk 0:00:11]}  Rf7 {[%clk 0:00:23]} 50. h4 {[%clk 0:00:10]}  Rb7 {[%clk 0:00:23]} 51. Rc8+ {[%clk 0:00:10]}  Kd7 {[%clk 0:00:18]} 52. Rxc5 {[%clk 0:00:06]}  Rxc5 {[%clk 0:00:16]} 53. Nxc5+ {[%clk 0:00:07]}  Kc6 {[%clk 0:00:16]} 54. Nxb7 {[%clk 0:00:08]}  Kxb7 {[%clk 0:00:17]} 55. h5 {[%clk 0:00:08]}  b3 {[%clk 0:00:17]} 56. h6 {[%clk 0:00:09]}  b2 {[%clk 0:00:18]} 57. h7 {[%clk 0:00:09]}  b1=Q {[%clk 0:00:17]} 58. h8=Q {[%clk 0:00:10]}  Qg1+ {[%clk 0:00:17]} 59. Kf3 {[%clk 0:00:10]}  Qf1+ {[%clk 0:00:17]} 60. Ke4 {[%clk 0:00:10]}  Qg2+ {[%clk 0:00:17]} 61. Kd3 {[%clk 0:00:10]}  Qf1+ {[%clk 0:00:16]} 62. Ke4 {[%clk 0:00:09]}  Qg2+ {[%clk 0:00:16]} 63. Kd3 {[%clk 0:00:06]}  Qf1+ {[%clk 0:00:16]} 64. Kd2 {[%clk 0:00:01]}  Qf2+ {[%clk 0:00:16]} 65. Kd3 {[%clk 0:00:02]}  Qf5+ {[%clk 0:00:15]} 66. e4 {[%clk 0:00:02]}  Qf1+ {[%clk 0:00:14]} 67. Ke3 {[%clk 0:00:02]}  Qe1+ {[%clk 0:00:14]} 68. Kf4 {[%clk 0:00:02]}  Qf2+ {[%clk 0:00:13]} 69. Kg4 {[%clk 0:00:02]}  Qg2+ {[%clk 0:00:14]} 70. Kf4 {[%clk 0:00:03]}  Qf2+ {[%clk 0:00:14]} 71. Kg5 {[%clk 0:00:03]}  Qg3+ {[%clk 0:00:14]} 72. Kf5 {[%clk 0:00:03]}  Qf3+ {[%clk 0:00:14]} 73. Ke6 {[%clk 0:00:03]}  Qxe4+ {[%clk 0:00:14]} 74. Qe5 {[%clk 0:00:04]}  Qxe5+ {[%clk 0:00:14]} 75. Kxe5 {[%clk 0:00:05]} 1/2-1/2


[Site "https://www.chess.com"]

[Event "Titled Tuesday Blitz May 16 Early 2023"]
[White "Le, Tuan Minh"]
[Black "Nihal Sarin"]
[WhiteFideId "12401153"]
[BlackFideId "25092340"]
[WhiteElo "2566"]
[BlackElo "2689"]
[Result "1-0"]
[Round "06"]
[TimeControl "180+2"]
[Date "2023.05.16"]
[WhiteClock "0:00:19"]
[BlackClock "0:00:00"]

1. d4 {[%clk 0:03:00]}  Nf6 {[%clk 0:02:57]} 2. Nf3 {[%clk 0:03:00]}  b5 {[%clk 0:02:48]} 3. Bg5 {[%clk 0:02:58]}  Bb7 {[%clk 0:02:44]} 4. e3 {[%clk 0:02:54]}  a6 {[%clk 0:02:44]} 5. a4 {[%clk 0:02:53]}  b4 {[%clk 0:02:43]} 6. Nbd2 {[%clk 0:02:50]}  e6 {[%clk 0:02:43]} 7. Bd3 {[%clk 0:02:50]}  Be7 {[%clk 0:02:43]} 8. O-O {[%clk 0:02:50]}  h6 {[%clk 0:02:43]} 9. Bxf6 {[%clk 0:02:46]}  Bxf6 {[%clk 0:02:44]} 10. c3 {[%clk 0:02:47]}  bxc3 {[%clk 0:02:41]} 11. bxc3 {[%clk 0:02:48]}  O-O {[%clk 0:02:39]} 12. e4 {[%clk 0:02:46]}  d6 {[%clk 0:02:39]} 13. Qb3 {[%clk 0:02:40]}  Ra7 {[%clk 0:02:39]} 14. a5 {[%clk 0:02:31]}  Nd7 {[%clk 0:02:38]} 15. Rfb1 {[%clk 0:02:30]}  g6 {[%clk 0:02:28]} 16. h3 {[%clk 0:02:24]}  Kg7 {[%clk 0:02:29]} 17. Qd1 {[%clk 0:02:22]}  e5 {[%clk 0:02:26]} 18. d5 {[%clk 0:01:53]}  Be7 {[%clk 0:02:04]} 19. Rb4 {[%clk 0:01:43]}  Bc8 {[%clk 0:01:59]} 20. Rab1 {[%clk 0:01:41]}  f5 {[%clk 0:01:53]} 21. Nf1 {[%clk 0:01:29]}  Nc5 {[%clk 0:01:51]} 22. Ng3 {[%clk 0:01:26]}  Bd7 {[%clk 0:01:41]} 23. exf5 {[%clk 0:01:07]}  gxf5 {[%clk 0:01:38]} 24. Rb8 {[%clk 0:00:58]}  Qxb8 {[%clk 0:01:19]} 25. Rxb8 {[%clk 0:00:59]}  Rxb8 {[%clk 0:01:20]} 26. Bxf5 {[%clk 0:01:00]}  Rab7 {[%clk 0:01:01]} 27. Nd2 {[%clk 0:01:00]}  Be8 {[%clk 0:00:51]} 28. Qg4+ {[%clk 0:00:57]}  Kf8 {[%clk 0:00:51]} 29. Nde4 {[%clk 0:00:56]}  Nxe4 {[%clk 0:00:21]} 30. Nxe4 {[%clk 0:00:57]}  h5 {[%clk 0:00:16]} 31. Qf3 {[%clk 0:00:56]}  Kg7 {[%clk 0:00:17]} 32. Ng3 {[%clk 0:00:50]}  Rb2 {[%clk 0:00:03]} 33. Be4 {[%clk 0:00:42]}  Bg5 {[%clk 0:00:02]} 34. Nxh5+ {[%clk 0:00:24]}  Kh6 {[%clk 0:00:01]} 35. Nf6 {[%clk 0:00:20]}  Bf4 {[%clk 0:00:00]} 36. g3 {[%clk 0:00:19]} 1-0


[Site "https://www.chess.com"]

[Event "Titled Tuesday Blitz May 16 Early 2023"]
[White "Swiercz, Dariusz"]
[Black "Andreikin, Dmitry"]
[WhiteFideId "1126881"]
[BlackFideId "4158814"]
[WhiteElo "2620"]
[BlackElo "2736"]
[Result "1/2-1/2"]
[Round "06"]
[TimeControl "180+2"]
[Date "2023.05.16"]
[WhiteClock "0:02:53"]
[BlackClock "0:02:49"]

1. d4 {[%clk 0:03:00]}  Nf6 {[%clk 0:02:56]} 2. c4 {[%clk 0:02:58]}  e6 {[%clk 0:02:53]} 3. Nc3 {[%clk 0:02:59]}  d5 {[%clk 0:02:50]} 4. Nf3 {[%clk 0:02:59]}  a6 {[%clk 0:02:45]} 5. cxd5 {[%clk 0:02:57]}  exd5 {[%clk 0:02:46]} 6. Bg5 {[%clk 0:02:58]}  Be6 {[%clk 0:02:46]} 7. e3 {[%clk 0:02:57]}  Nbd7 {[%clk 0:02:47]} 8. Bd3 {[%clk 0:02:57]}  h6 {[%clk 0:02:47]} 9. Bh4 {[%clk 0:02:57]}  g5 {[%clk 0:02:47]} 10. Bg3 {[%clk 0:02:57]}  Nh5 {[%clk 0:02:48]} 11. Be5 {[%clk 0:02:58]}  Nhf6 {[%clk 0:02:48]} 12. Bg3 {[%clk 0:02:58]}  Nh5 {[%clk 0:02:49]} 13. Be5 {[%clk 0:02:53]}  Nhf6 {[%clk 0:02:49]} 14. Bg3 {[%clk 0:02:53]} 1/2-1/2


[Site "https://www.chess.com"]

[Event "Titled Tuesday Blitz May 16 Early 2023"]
[White "Bacrot, Etienne"]
[Black "Maghsoodloo, Parham"]
[WhiteFideId "605506"]
[BlackFideId "12539929"]
[WhiteElo "2672"]
[BlackElo "2655"]
[Result "0-1"]
[Round "06"]
[TimeControl "180+2"]
[Date "2023.05.16"]
[WhiteClock "0:00:00"]
[BlackClock "0:01:14"]

1. e4 {[%clk 0:03:00]}  c5 {[%clk 0:02:40]} 2. Nf3 {[%clk 0:03:01]}  e6 {[%clk 0:02:39]} 3. c3 {[%clk 0:03:00]}  d5 {[%clk 0:02:38]} 4. exd5 {[%clk 0:03:00]}  Qxd5 {[%clk 0:02:38]} 5. d4 {[%clk 0:03:00]}  Nf6 {[%clk 0:02:39]} 6. Na3 {[%clk 0:03:01]}  a6 {[%clk 0:02:36]} 7. Be2 {[%clk 0:03:00]}  cxd4 {[%clk 0:02:33]} 8. Qxd4 {[%clk 0:02:46]}  Nc6 {[%clk 0:02:28]} 9. Qxd5 {[%clk 0:02:46]}  Nxd5 {[%clk 0:02:29]} 10. Nc4 {[%clk 0:02:42]}  b5 {[%clk 0:02:27]} 11. Ne3 {[%clk 0:02:43]}  Nb6 {[%clk 0:02:25]} 12. Nc2 {[%clk 0:02:31]}  Bb7 {[%clk 0:02:25]} 13. O-O {[%clk 0:02:30]}  Be7 {[%clk 0:02:24]} 14. Rd1 {[%clk 0:02:28]}  O-O {[%clk 0:02:22]} 15. Nfd4 {[%clk 0:02:28]}  Nxd4 {[%clk 0:02:21]} 16. Nxd4 {[%clk 0:02:28]}  Rfd8 {[%clk 0:02:22]} 17. Bf4 {[%clk 0:02:17]}  Na4 {[%clk 0:02:22]} 18. Rd2 {[%clk 0:02:07]}  b4 {[%clk 0:02:10]} 19. Bc7 {[%clk 0:01:05]}  Rdc8 {[%clk 0:02:06]} 20. Ba5 {[%clk 0:00:57]}  bxc3 {[%clk 0:02:04]} 21. bxc3 {[%clk 0:00:58]}  Nxc3 {[%clk 0:02:05]} 22. Bf1 {[%clk 0:00:58]}  Ne4 {[%clk 0:02:01]} 23. Rdd1 {[%clk 0:00:51]}  Bf6 {[%clk 0:01:59]} 24. Rab1 {[%clk 0:00:50]}  Bd5 {[%clk 0:01:58]} 25. a4 {[%clk 0:00:42]}  Nc3 {[%clk 0:01:55]} 26. Bxc3 {[%clk 0:00:38]}  Rxc3 {[%clk 0:01:55]} 27. Bxa6 {[%clk 0:00:26]}  Be4 {[%clk 0:01:53]} 28. Rb4 {[%clk 0:00:22]}  Rd8 {[%clk 0:01:43]} 29. Re1 {[%clk 0:00:18]}  Bxd4 {[%clk 0:01:28]} 30. Rxe4 {[%clk 0:00:17]}  Rc1+ {[%clk 0:01:25]} 31. Bf1 {[%clk 0:00:17]}  e5 {[%clk 0:01:25]} 32. a5 {[%clk 0:00:18]}  f5 {[%clk 0:01:18]} 33. Re2 {[%clk 0:00:18]}  Ra1 {[%clk 0:01:16]} 34. Rb5 {[%clk 0:00:00]}  Rc8 {[%clk 0:01:14]} 0-1


[Site "https://www.chess.com"]

[Event "Titled Tuesday Blitz May 16 Early 2023"]
[White "Bortnyk, Olexandr"]
[Black "Fernandez Guillen, Ernesto J."]
[WhiteFideId "14120828"]
[BlackFideId "3512428"]
[WhiteElo "2734"]
[BlackElo "2429"]
[Result "1-0"]
[Round "06"]
[TimeControl "180+2"]
[Date "2023.05.16"]
[WhiteClock "0:00:10"]
[BlackClock "0:00:00"]

1. d4 {[%clk 0:02:59]}  Nf6 {[%clk 0:02:53]} 2. Nc3 {[%clk 0:02:59]}  d5 {[%clk 0:02:52]} 3. Bf4 {[%clk 0:02:57]}  e6 {[%clk 0:02:51]} 4. Nb5 {[%clk 0:02:54]}  Na6 {[%clk 0:02:50]} 5. e3 {[%clk 0:02:54]}  Bd7 {[%clk 0:02:41]} 6. Nf3 {[%clk 0:02:53]}  Be7 {[%clk 0:02:38]} 7. Ne5 {[%clk 0:02:51]}  O-O {[%clk 0:02:39]} 8. Nxd7 {[%clk 0:02:50]}  Qxd7 {[%clk 0:02:40]} 9. Nc3 {[%clk 0:02:48]}  c5 {[%clk 0:02:34]} 10. Bxa6 {[%clk 0:02:32]}  bxa6 {[%clk 0:02:35]} 11. O-O {[%clk 0:02:32]}  Rfc8 {[%clk 0:02:29]} 12. Ne2 {[%clk 0:02:11]}  Bd6 {[%clk 0:02:09]} 13. c3 {[%clk 0:01:56]}  Rab8 {[%clk 0:02:06]} 14. Rb1 {[%clk 0:01:56]}  Rb6 {[%clk 0:02:01]} 15. dxc5 {[%clk 0:01:48]}  Rxc5 {[%clk 0:01:57]} 16. Bxd6 {[%clk 0:01:44]}  Qxd6 {[%clk 0:01:58]} 17. Qa4 {[%clk 0:01:37]}  Rc4 {[%clk 0:01:52]} 18. Qc2 {[%clk 0:01:34]}  Ng4 {[%clk 0:01:37]} 19. g3 {[%clk 0:01:30]}  h5 {[%clk 0:01:36]} 20. b3 {[%clk 0:01:26]}  Rc8 {[%clk 0:01:34]} 21. Rbd1 {[%clk 0:01:24]}  Qe5 {[%clk 0:01:19]} 22. Qd3 {[%clk 0:01:17]}  Rbc6 {[%clk 0:01:11]} 23. Qd4 {[%clk 0:01:14]}  Qg5 {[%clk 0:01:09]} 24. h4 {[%clk 0:00:57]}  Qg6 {[%clk 0:01:05]} 25. f3 {[%clk 0:00:48]}  Nh6 {[%clk 0:00:53]} 26. Kf2 {[%clk 0:00:47]}  Nf5 {[%clk 0:00:52]} 27. Qf4 {[%clk 0:00:44]}  Rxc3 {[%clk 0:00:17]} 28. Nxc3 {[%clk 0:00:32]}  Rxc3 {[%clk 0:00:18]} 29. Rfe1 {[%clk 0:00:32]}  Rc2+ {[%clk 0:00:17]} 30. Re2 {[%clk 0:00:33]}  Rxe2+ {[%clk 0:00:15]} 31. Kxe2 {[%clk 0:00:34]}  Nxg3+ {[%clk 0:00:15]} 32. Kd2 {[%clk 0:00:31]}  Nf5 {[%clk 0:00:13]} 33. Qg5 {[%clk 0:00:28]}  Qxg5 {[%clk 0:00:10]} 34. hxg5 {[%clk 0:00:29]}  Nh4 {[%clk 0:00:08]} 35. Ke2 {[%clk 0:00:27]}  Nf5 {[%clk 0:00:06]} 36. e4 {[%clk 0:00:24]}  dxe4 {[%clk 0:00:07]} 37. fxe4 {[%clk 0:00:24]}  Ne7 {[%clk 0:00:04]} 38. Rd7 {[%clk 0:00:24]}  Ng6 {[%clk 0:00:04]} 39. Rxa7 {[%clk 0:00:24]}  h4 {[%clk 0:00:05]} 40. Rxa6 {[%clk 0:00:23]}  h3 {[%clk 0:00:05]} 41. Rd6 {[%clk 0:00:19]}  h2 {[%clk 0:00:03]} 42. Rd1 {[%clk 0:00:17]}  Nf4+ {[%clk 0:00:03]} 43. Kf3 {[%clk 0:00:16]}  Nh3 {[%clk 0:00:04]} 44. Kg2 {[%clk 0:00:16]}  Nxg5 {[%clk 0:00:05]} 45. e5 {[%clk 0:00:09]}  Kf8 {[%clk 0:00:03]} 46. a4 {[%clk 0:00:09]}  Ke7 {[%clk 0:00:00]} 47. a5 {[%clk 0:00:10]} 1-0


[Site "https://www.chess.com"]

[Event "Titled Tuesday Blitz May 16 Early 2023"]
[White "Grischuk, Alexander"]
[Black "Ilamparthi A R"]
[WhiteFideId "4126025"]
[BlackFideId "45015775"]
[WhiteElo "2721"]
[BlackElo "2348"]
[Result "1/2-1/2"]
[Round "06"]
[TimeControl "180+2"]
[Date "2023.05.16"]
[WhiteClock "0:00:15"]
[BlackClock "0:00:13"]

1. Nf3 {[%clk 0:02:57]}  Nf6 {[%clk 0:02:59]} 2. g3 {[%clk 0:02:58]}  g6 {[%clk 0:02:59]} 3. c4 {[%clk 0:02:58]}  Bg7 {[%clk 0:03:00]} 4. Nc3 {[%clk 0:02:59]}  O-O {[%clk 0:03:01]} 5. Bg2 {[%clk 0:02:59]}  d6 {[%clk 0:02:58]} 6. d4 {[%clk 0:02:58]}  c5 {[%clk 0:02:58]} 7. O-O {[%clk 0:02:55]}  Nc6 {[%clk 0:02:58]} 8. d5 {[%clk 0:02:50]}  Na5 {[%clk 0:02:58]} 9. Nd2 {[%clk 0:02:47]}  e6 {[%clk 0:02:58]} 10. Qc2 {[%clk 0:02:41]}  exd5 {[%clk 0:02:56]} 11. cxd5 {[%clk 0:02:42]}  Rb8 {[%clk 0:02:55]} 12. a4 {[%clk 0:02:39]}  a6 {[%clk 0:02:55]} 13. b3 {[%clk 0:02:39]}  b5 {[%clk 0:02:52]} 14. axb5 {[%clk 0:02:39]}  axb5 {[%clk 0:02:53]} 15. Bb2 {[%clk 0:02:39]}  Re8 {[%clk 0:02:52]} 16. e4 {[%clk 0:02:37]}  Nd7 {[%clk 0:02:29]} 17. Nd1 {[%clk 0:02:33]}  b4 {[%clk 0:02:21]} 18. Bxg7 {[%clk 0:02:31]}  Kxg7 {[%clk 0:02:21]} 19. Ne3 {[%clk 0:02:23]}  Ba6 {[%clk 0:02:19]} 20. Rfe1 {[%clk 0:02:12]}  Bb5 {[%clk 0:01:59]} 21. Bf1 {[%clk 0:02:10]}  Bxf1 {[%clk 0:01:53]} 22. Kxf1 {[%clk 0:02:10]}  Nb7 {[%clk 0:01:49]} 23. Ndc4 {[%clk 0:02:03]}  Qf6 {[%clk 0:01:46]} 24. Kg2 {[%clk 0:02:03]}  h5 {[%clk 0:01:44]} 25. f3 {[%clk 0:01:59]}  Ra8 {[%clk 0:01:43]} 26. Rxa8 {[%clk 0:01:32]}  Rxa8 {[%clk 0:01:44]} 27. h4 {[%clk 0:01:32]}  Na5 {[%clk 0:01:28]} 28. f4 {[%clk 0:01:27]}  Nxc4 {[%clk 0:01:22]} 29. Nxc4 {[%clk 0:01:27]}  Qc3 {[%clk 0:00:50]} 30. Qxc3+ {[%clk 0:01:06]}  bxc3 {[%clk 0:00:51]} 31. Rc1 {[%clk 0:01:06]}  Nf6 {[%clk 0:00:36]} 32. Nxd6 {[%clk 0:00:48]}  Ra6 {[%clk 0:00:36]} 33. e5 {[%clk 0:00:26]}  Nxd5 {[%clk 0:00:34]} 34. Kf3 {[%clk 0:00:27]}  f5 {[%clk 0:00:22]} 35. exf6+ {[%clk 0:00:25]}  Nxf6 {[%clk 0:00:21]} 36. Ne4 {[%clk 0:00:23]}  Nxe4 {[%clk 0:00:16]} 37. Kxe4 {[%clk 0:00:24]}  Ra3 {[%clk 0:00:16]} 38. Rxc3 {[%clk 0:00:21]}  c4 {[%clk 0:00:17]} 39. Rxc4 {[%clk 0:00:19]}  Rxb3 {[%clk 0:00:18]} 40. Rc7+ {[%clk 0:00:18]}  Kh6 {[%clk 0:00:18]} 41. Rc6 {[%clk 0:00:16]}  Rxg3 {[%clk 0:00:17]} 42. f5 {[%clk 0:00:16]}  Kg7 {[%clk 0:00:14]} 43. Ke5 {[%clk 0:00:12]}  gxf5 {[%clk 0:00:12]} 44. Kxf5 {[%clk 0:00:12]}  Rg4 {[%clk 0:00:12]} 45. Rc7+ {[%clk 0:00:13]}  Kh6 {[%clk 0:00:12]} 46. Rc6+ {[%clk 0:00:13]}  Kg7 {[%clk 0:00:12]} 47. Rc7+ {[%clk 0:00:14]}  Kh6 {[%clk 0:00:13]} 48. Rc6+ {[%clk 0:00:15]}  Kg7 {[%clk 0:00:13]} 1/2-1/2


[Site "https://www.chess.com"]

[Event "Titled Tuesday Blitz May 16 Early 2023"]
[White "Harsh Suresh"]
[Black "Tang, Andrew"]
[WhiteFideId "45018464"]
[BlackFideId "2059630"]
[WhiteElo "2209"]
[BlackElo "2596"]
[Result "0-1"]
[Round "06"]
[TimeControl "180+2"]
[Date "2023.05.16"]
[WhiteClock "0:00:09"]
[BlackClock "0:00:04"]

1. e4 {[%clk 0:02:58]}  e5 {[%clk 0:02:55]} 2. Nf3 {[%clk 0:02:57]}  Nc6 {[%clk 0:02:55]} 3. Bc4 {[%clk 0:02:56]}  Nf6 {[%clk 0:02:55]} 4. d3 {[%clk 0:02:55]}  h6 {[%clk 0:02:56]} 5. O-O {[%clk 0:02:54]}  d6 {[%clk 0:02:55]} 6. c3 {[%clk 0:02:50]}  g5 {[%clk 0:02:55]} 7. a4 {[%clk 0:02:50]}  Bg7 {[%clk 0:02:55]} 8. b4 {[%clk 0:02:49]}  O-O {[%clk 0:02:55]} 9. Re1 {[%clk 0:02:46]}  Re8 {[%clk 0:02:50]} 10. Nbd2 {[%clk 0:02:40]}  g4 {[%clk 0:02:50]} 11. Nh4 {[%clk 0:02:38]}  Nxe4 {[%clk 0:02:48]} 12. dxe4 {[%clk 0:02:28]}  Qxh4 {[%clk 0:02:48]} 13. Nf1 {[%clk 0:02:28]}  Be6 {[%clk 0:02:44]} 14. Bxe6 {[%clk 0:02:25]}  fxe6 {[%clk 0:02:45]} 15. Ne3 {[%clk 0:02:24]}  h5 {[%clk 0:02:41]} 16. b5 {[%clk 0:02:24]}  Ne7 {[%clk 0:02:37]} 17. c4 {[%clk 0:02:24]}  Ng6 {[%clk 0:02:33]} 18. a5 {[%clk 0:02:23]}  Rf8 {[%clk 0:02:33]} 19. Ra2 {[%clk 0:02:22]}  Rf7 {[%clk 0:02:33]} 20. Ba3 {[%clk 0:02:16]}  b6 {[%clk 0:02:28]} 21. Bxd6 {[%clk 0:01:52]}  Rd8 {[%clk 0:02:20]} 22. axb6 {[%clk 0:01:42]}  axb6 {[%clk 0:02:18]} 23. c5 {[%clk 0:01:09]}  bxc5 {[%clk 0:02:10]} 24. b6 {[%clk 0:00:58]}  cxd6 {[%clk 0:02:11]} 25. Nc4 {[%clk 0:00:56]}  d5 {[%clk 0:02:08]} 26. Na5 {[%clk 0:00:54]}  dxe4 {[%clk 0:02:04]} 27. Qb3 {[%clk 0:00:49]}  c4 {[%clk 0:00:33]} 28. Qb1 {[%clk 0:00:38]}  Ne7 {[%clk 0:00:09]} 29. b7 {[%clk 0:00:24]}  Rff8 {[%clk 0:00:07]} 30. Nxc4 {[%clk 0:00:20]}  Nd5 {[%clk 0:00:06]} 31. Qxe4 {[%clk 0:00:18]}  Nc3 {[%clk 0:00:06]} 32. Qc2 {[%clk 0:00:16]}  Nxa2 {[%clk 0:00:06]} 33. Qxa2 {[%clk 0:00:17]}  Rb8 {[%clk 0:00:06]} 34. Nd6 {[%clk 0:00:16]}  Qe7 {[%clk 0:00:05]} 35. Rd1 {[%clk 0:00:17]}  Rfd8 {[%clk 0:00:05]} 36. Qa6 {[%clk 0:00:17]}  Rxb7 {[%clk 0:00:04]} 37. h4 {[%clk 0:00:09]}  Rbd7 {[%clk 0:00:04]} 0-1


[Site "https://www.chess.com"]